bitfinex-derivatives/quotes_SOLF0:USTF0_20260222
["timestamp","ask_amount","ask_price","bid_price","bid_amount"]
[1771748981929,9.12322536,84.963,84.917,4.66296388]
[1771748982124,10.5959,84.964,84.917,4.66296388]
[1771748982125,9.12627487,84.962,84.917,4.66296388]
[1771748982322,10.5959,84.964,84.917,4.66296388]
[1771748982525,10.5959,84.964,84.932,0.07417324]
[1771748982526,9.12632616,84.963,84.932,0.07417324]
[1771748982725,10.5959,84.964,84.932,0.07417324]
[1771748982726,9.12632616,84.962,84.932,0.07417324]
[1771748983020,10.5959,84.964,84.932,0.07417324]
[1771748983220,9.12632616,84.963,84.932,0.07417324]
[1771748983424,9.12632616,84.962,84.932,0.07417324]
[1771748983630,9.12632616,84.961,84.932,0.07417324]
[1771748983835,10.5959,84.964,84.932,0.07417324]
[1771748984025,2.48343627,84.96,84.916,4.66667083]
[1771748984324,2.48343627,84.94,84.896,4.66667083]
[1771748984529,14.45826933,84.979,84.88,2.48343627]
[1771748984530,2.48343627,84.93,84.88,4.66667083]
[1771748984923,2.48343627,84.93,84.881,4.6440396]
[1771748985119,2.48343627,84.94,84.881,4.6440396]
[1771748985820,2.48343627,84.94,84.896,4.6440396]
[1771748987630,0.07426605,84.926,84.896,4.6440396]
[1771748995043,0.07426605,84.926,84.901,4.71019714]
[1771748996341,0.07426605,84.926,84.88,2.48343627]
[1771748996342,0.07426605,84.926,84.881,4.71019714]
[1771748996837,0.07426605,84.926,84.886,4.74782535]
[1771748997642,0.07426605,84.926,84.89,4.74782535]
[1771748998643,0.07426605,84.926,84.889,10.6051]
[1771748998644,0.07426605,84.926,84.893,4.74814649]
[1771748999342,0.07426605,84.926,84.855,11.99655376]
[1771748999343,10.89079673,84.97,84.901,4.74814649]
[1771748999532,2.48343627,84.95,84.901,4.74814649]
[1771748999740,9.13283909,84.949,84.901,4.74814649]
[1771748999934,2.48343627,84.95,84.901,4.74814649]
[1771749000140,9.13256757,84.949,84.901,4.74814649]
[1771749000335,2.48343627,84.95,84.903,4.74814649]
[1771749000538,9.13256928,84.949,84.903,4.74814649]
[1771749000740,2.48343627,84.94,84.891,4.77681446]
[1771749001743,2.48343627,84.94,84.893,4.77681446]
[1771749003141,10.5993,84.937,84.893,4.77681446]
[1771749003342,2.48343627,84.93,84.883,4.77605781]
[1771749004643,10.5993,84.937,84.883,4.77605781]
[1771749011249,2.48504497,84.93,84.883,4.77605781]
[1771749012350,10.5993,84.937,84.883,4.77605781]
[1771749013750,10.5993,84.937,84.885,4.79153107]
[1771749014052,10.5993,84.937,84.89,2.48504497]
[1771749014348,10.5993,84.937,84.891,4.79153107]
[1771749021758,10.5993,84.937,84.82,98.64341457]
[1771749021759,2.48504497,84.96,84.901,4.79561851]
[1771749022756,10.5965,84.959,84.902,4.8932762]
[1771749024466,10.5975,84.951,84.902,4.8932762]
[1771749024664,2.48504497,84.95,84.902,4.8932762]
[1771749027764,2.48504497,84.95,84.903,10.6034]
[1771749027960,2.48504497,84.95,84.904,4.83405472]
[1771749035373,2.48504497,84.94,84.893,4.94754454]
[1771749037281,10.598,84.947,84.894,4.83593837]
[1771749037578,9.08467377,84.946,84.894,4.83593837]
[1771749037879,10.598,84.947,84.894,4.83593837]
[1771749038179,9.08468603,84.946,84.894,4.83593837]
[1771749038380,10.598,84.947,84.894,4.83593837]
[1771749038582,9.08473584,84.946,84.894,4.83593837]
[1771749038781,10.598,84.947,84.894,4.83593837]
[1771749038982,9.0865256,84.946,84.894,4.83593837]
[1771749039282,10.598,84.947,84.894,4.83593837]
[1771749039484,10.5983,84.945,84.894,4.83593837]
[1771749043485,10.5983,84.945,84.896,4.91022513]
[1771749044887,10.5983,84.945,84.898,4.91950665]
[1771749045486,9.15653216,84.944,84.898,4.91950665]
[1771749045687,10.5983,84.945,84.898,4.91950665]
[1771749045887,9.15653216,84.944,84.898,4.91950665]
[1771749046182,10.5986,84.943,84.898,4.91950665]
[1771749058598,10.5986,84.943,84.912,0.07433017]
[1771749059198,9.16016191,84.942,84.912,0.07433017]
[1771749059398,10.5986,84.943,84.912,0.07433017]
[1771749059593,9.16016715,84.942,84.912,0.07433017]
[1771749059896,10.5986,84.943,84.912,0.07433017]
[1771749060098,9.16016766,84.942,84.912,0.07433017]
[1771749060293,10.5986,84.943,84.912,0.07433017]
[1771749060494,9.16064867,84.942,84.912,0.07433017]
[1771749060699,10.5986,84.943,84.912,0.07433017]
[1771749060899,9.16065545,84.942,84.912,0.07433017]
[1771749061197,10.5986,84.943,84.912,0.07433017]
[1771749061391,9.16301733,84.942,84.912,0.07433017]
[1771749061590,10.5986,84.943,84.912,0.07433017]
[1771749061800,9.1631761,84.942,84.912,0.07433017]
[1771749062001,10.5986,84.943,84.912,0.07433017]
[1771749062196,9.16317711,84.942,84.912,0.07433017]
[1771749062395,10.5986,84.943,84.912,0.07433017]
[1771749062591,10.5988,84.941,84.912,0.07433017]
[1771749066203,9.16619214,84.94,84.912,0.07433017]
[1771749066403,10.5988,84.941,84.912,0.07433017]
[1771749066604,9.1662543,84.94,84.912,0.07433017]
[1771749066904,10.5988,84.941,84.912,0.07433017]
[1771749067099,9.16626227,84.94,84.912,0.07433017]
[1771749067294,10.5988,84.941,84.912,0.07433017]
[1771749067499,9.16649341,84.94,84.912,0.07433017]
[1771749067699,10.5988,84.941,84.912,0.07433017]
[1771749067901,9.16649341,84.94,84.912,0.07433017]
[1771749068105,10.5988,84.941,84.912,0.07433017]
[1771749068302,9.16670805,84.94,84.912,0.07433017]
[1771749068502,10.5988,84.941,84.912,0.07433017]
[1771749068704,9.16677473,84.94,84.912,0.07433017]
[1771749068906,10.5988,84.941,84.912,0.07433017]
[1771749069098,9.16677473,84.94,84.912,0.07433017]
[1771749069298,10.5988,84.941,84.912,0.07433017]
[1771749069609,21.6858232,84.981,84.888,10.6053]
[1771749069610,2.48504497,84.93,84.892,4.90607451]
[1771749070000,2.48535555,84.93,84.892,4.90607451]
[1771749072513,10.599,84.939,84.892,4.90607451]
[1771749076310,10.87599842,84.96,84.88,4.90643553]
[1771749076516,2.48535555,84.92,84.88,4.90643553]
[1771749076712,2.48535555,84.93,84.881,4.90360083]
[1771749076917,9.16015179,84.929,84.881,4.90360083]
[1771749077119,9.16015179,84.928,84.881,4.90360083]
[1771749077318,2.48535555,84.93,84.881,4.90360083]
[1771749077618,9.15717478,84.929,84.881,4.90360083]
[1771749077915,2.48535555,84.93,84.881,4.90360083]
[1771749078116,9.15717876,84.929,84.881,4.90360083]
[1771749078311,2.48535555,84.93,84.881,4.90360083]
[1771749078821,10.87599842,84.95,84.86,168.63097358]
[1771749078822,10.5987,84.942,84.901,4.91526138]
[1771749079019,9.15623082,84.941,84.901,4.91526138]
[1771749079219,9.15623082,84.94,84.901,4.91526138]
[1771749079518,9.15623082,84.939,84.901,4.91526138]
[1771749079815,9.15623082,84.938,84.901,4.91526138]
[1771749080016,10.5987,84.942,84.901,4.91526138]
[1771749080209,10.5989,84.94,84.901,4.91526138]
[1771749080408,9.15630409,84.939,84.901,4.91526138]
[1771749080616,10.5989,84.94,84.901,4.91526138]
[1771749080916,9.15680969,84.939,84.901,4.91526138]
[1771749081116,9.15680969,84.938,84.901,4.91526138]
[1771749081317,13.08425555,84.94,84.901,4.91526138]
[1771749081519,9.15679324,84.939,84.901,4.91526138]
[1771749081719,9.15679324,84.938,84.901,4.91526138]
[1771749082020,13.08295555,84.95,84.901,4.91526138]
[1771749082218,9.15781398,84.949,84.901,4.91526138]
[1771749082417,2.48535555,84.94,84.901,4.91526138]
[1771749082619,9.15781398,84.939,84.901,4.91526138]
[1771749082818,9.15781398,84.938,84.901,4.91526138]
[1771749083020,2.48535555,84.94,84.901,4.91526138]
[1771749083221,9.15643237,84.939,84.901,4.91526138]
[1771749083416,9.15643237,84.938,84.901,4.91526138]
[1771749083616,2.48535555,84.94,84.901,4.91526138]
[1771749083818,10.5992,84.938,84.901,4.91526138]
[1771749084016,9.1564843,84.937,84.901,4.91526138]
[1771749084217,10.5992,84.938,84.901,4.91526138]
[1771749084512,9.1564002,84.937,84.901,4.91526138]
[1771749084714,10.5992,84.938,84.901,4.91526138]
[1771749084916,9.15639622,84.937,84.901,4.91526138]
[1771749085117,10.5992,84.938,84.901,4.91526138]
[1771749086021,9.15632717,84.937,84.901,4.91526138]
[1771749086221,10.5992,84.938,84.901,4.91526138]
[1771749086416,0.07441441,84.928,84.901,4.91526138]
[1771749091123,2.48535555,84.95,84.901,4.91526138]
[1771749091325,9.15708405,84.949,84.901,4.91526138]
[1771749091618,9.15708405,84.948,84.901,4.91526138]
[1771749091826,9.15708405,84.947,84.901,4.91526138]
[1771749092123,2.48535555,84.95,84.901,4.91526138]
[1771749092325,9.15701485,84.949,84.901,4.91526138]
[1771749092526,9.15701485,84.948,84.901,4.91526138]
[1771749092726,2.48535555,84.95,84.901,4.91526138]
[1771749092926,9.15656905,84.949,84.901,4.91526138]
[1771749093128,9.15656905,84.948,84.901,4.91526138]
[1771749093329,2.48535555,84.95,84.901,4.91526138]
[1771749093627,9.15610144,84.949,84.901,4.91526138]
[1771749093828,9.15610144,84.948,84.901,4.91526138]
[1771749094130,2.48535555,84.95,84.901,4.91526138]
[1771749094332,9.15498534,84.949,84.901,4.91526138]
[1771749094629,9.15498534,84.948,84.901,4.91526138]
[1771749094832,9.15498534,84.947,84.901,4.91526138]
[1771749095030,2.48535555,84.95,84.901,4.91526138]
[1771749095233,9.15399691,84.949,84.901,4.91526138]
[1771749095530,10.5969,84.956,84.901,4.91526138]
[1771749095531,2.48535555,84.94,84.916,0.07439975]
[1771749100727,10.599,84.939,84.916,0.07439975]
[1771749113850,2.48535555,84.94,84.916,0.07439975]
[1771749114149,13.08295555,84.95,84.916,0.07439975]
[1771749119056,2.48535555,84.94,84.916,0.07439975]
[1771749119754,13.08295555,84.95,84.916,0.07439975]
[1771749119957,9.13196781,84.949,84.916,0.07439975]
[1771749120156,13.08295555,84.95,84.916,4.86693902]
[1771749120356,2.48535555,84.95,84.916,4.86693902]
[1771749123460,9.1351467,84.949,84.916,4.86693902]
[1771749123661,2.48535555,84.95,84.916,4.86693902]
[1771749123860,9.1351467,84.949,84.916,4.86693902]
[1771749124164,2.48535555,84.95,84.916,4.86693902]
[1771749124463,9.13489558,84.949,84.916,4.86693902]
[1771749124660,10.87599842,84.968,84.922,4.80238956]
[1771749124861,9.13672597,84.967,84.922,4.80238956]
[1771749125066,2.48535555,84.97,84.922,4.80238956]
[1771749125266,9.13247424,84.969,84.922,4.80238956]
[1771749125564,2.48535555,84.97,84.922,4.80238956]
[1771749125765,9.1328536,84.969,84.922,4.80238956]
[1771749126064,2.48535555,84.97,84.922,4.80238956]
[1771749129868,2.48535555,84.97,84.938,0.07425566]
[1771749131270,2.48535555,84.96,84.938,0.07425566]
[1771749131867,2.48333747,84.96,84.938,0.07425566]
[1771749139069,2.48333747,84.98,84.938,5.03821228]
[1771749140470,2.48333747,84.97,84.938,5.03821228]
[1771749149080,315.69482497,84.988,84.938,5.03821228]
[1771749149081,2.48333747,84.96,84.938,0.07425566]
[1771749150277,2.48333747,84.95,84.938,0.07425566]
[1771749152579,2.48333747,84.96,84.938,0.07425566]
[1771749161289,2.48333747,84.95,84.938,0.07425566]
[1771749162283,2.48333747,84.95,84.92,4.97060164]
[1771749163787,2.48333747,84.95,84.91,10.6026]
[1771749163788,2.48333747,84.94,84.91,4.95051503]
[1771749164390,552.41648005,84.988,84.91,4.95051503]
[1771749164391,2.48333747,84.95,84.91,4.95051503]
[1771749166784,2.48333747,84.94,84.91,4.95051503]
[1771749166986,2.48333747,84.93,84.9,4.96299935]
[1771749168189,2.48333747,84.93,84.904,4.96478575]
[1771749168491,2.48333747,84.94,84.904,4.96478575]
[1771749169882,2.48333747,84.93,84.904,4.96478575]
[1771749172693,2.48333747,84.94,84.904,4.96478575]
[1771749175494,2.48333747,84.93,84.904,4.96478575]
[1771749179993,2.48333747,84.93,84.857,35.33]
[1771749179994,2.48333747,84.92,84.884,4.93616756]
[1771749180193,21.6858232,84.977,84.86,2.48333747]
[1771749180194,2.48333747,84.91,84.872,4.93616756]
[1771749191204,10.6028,84.909,84.872,4.93616756]
[1771749193608,14.45826933,84.96,84.857,4.9784338]
[1771749193609,13.09036855,84.9,84.857,4.9784338]
[1771749205411,13.09036855,84.9,84.783,29.28951602]
[1771749205412,2.48656855,84.89,84.848,4.94891953]
[1771749205611,2.48656855,84.89,84.831,4.94891953]
[1771749206717,10.6069,84.876,84.831,4.94891953]
[1771749212618,10.87599842,84.932,84.811,320.04238962]
[1771749212619,10.6047,84.894,84.851,4.88040798]
[1771749213015,10.6057,84.885,84.851,4.88040798]
[1771749213321,10.6057,84.885,84.841,4.88040798]
[1771749218024,32.07569842,84.933,84.831,4.86223321]
[1771749218025,10.6074,84.872,84.831,4.86223321]
[1771749218727,10.6074,84.872,84.821,4.86244875]
[1771749223728,10.6074,84.872,84.831,4.85839165]
[1771749223931,10.6058,84.884,84.841,4.85859202]
[1771749225332,2.48656855,84.87,84.814,4.85859202]
[1771749225533,9.24305164,84.899,84.821,4.85859202]
[1771749225723,2.48656855,84.88,84.821,4.85859202]
[1771749226833,10.6068,84.877,84.821,4.85859202]
[1771749228230,10.6068,84.877,84.831,4.80584495]
[1771749229333,10.6054,84.888,84.841,4.80584495]
[1771749234135,10.6036,84.902,84.851,4.80560256]
[1771749236734,2.48656855,84.91,84.861,4.81510826]
[1771749240333,10.6021,84.914,84.861,4.81510826]
[1771749240536,2.48656855,84.91,84.861,4.81510826]
[1771749240736,10.601,84.924,84.871,4.81308605]
[1771749242631,2.48656855,84.92,84.871,4.81308605]
[1771749243337,10.6015,84.919,84.871,4.81308605]
[1771749243541,2.48656855,84.9,84.871,4.81308605]
[1771749245144,2.48656855,84.9,84.86,4.80773178]
[1771749245339,21.193,84.96,84.833,4.80773178]
[1771749245340,2.48656855,84.88,84.833,4.80773178]
[1771749247150,10.6056,84.886,84.833,4.80773178]
[1771749249245,10.6056,84.886,84.825,10.6131]
[1771749249246,10.6043,84.897,84.841,4.71956332]
[1771749249448,9.18662693,84.896,84.841,4.71956332]
[1771749249747,9.18662693,84.895,84.841,4.71956332]
[1771749249949,10.6043,84.897,84.841,4.71956332]
[1771749250246,9.18685933,84.896,84.841,4.71956332]
[1771749250441,9.18685933,84.895,84.841,4.71956332]
[1771749250646,10.6043,84.897,84.841,4.71956332]
[1771749250942,9.18740567,84.896,84.841,4.71956332]
[1771749251142,9.18740567,84.895,84.841,4.71956332]
[1771749251338,2.48656855,84.89,84.841,4.71956332]
[1771749253843,2.48767875,84.89,84.841,4.71956332]
[1771749254944,10.603,84.907,84.853,4.76217454]
[1771749255146,2.48767875,84.9,84.853,4.76217454]
[1771749255644,10.6044,84.896,84.853,4.76217454]
[1771749255849,2.48767875,84.89,84.842,10.6111]
[1771749256148,2.48767875,84.89,84.843,4.74471064]
[1771749262551,10.6044,84.896,84.845,4.85163471]
[1771749271261,10.6044,84.896,84.851,4.82344639]
[1771749272254,2.48767875,84.9,84.851,4.82344639]
[1771749277768,2.48767875,84.9,84.854,4.80513956]
[1771749280366,10.6038,84.901,84.854,4.80513956]
[1771749282666,2.48767875,84.9,84.854,4.80513956]
[1771749287173,9.09792024,84.899,84.854,4.80513956]
[1771749287374,9.09792024,84.898,84.854,4.80513956]
[1771749287574,2.48767875,84.9,84.854,4.80513956]
[1771749287775,9.09792098,84.899,84.854,4.80513956]
[1771749288076,9.09792098,84.898,84.854,4.80513956]
[1771749288274,9.10209262,84.897,84.854,4.80513956]
[1771749288475,2.48767875,84.9,84.854,4.80513956]
[1771749288675,9.10209262,84.899,84.854,4.80513956]
[1771749288880,9.10209262,84.898,84.854,4.80513956]
[1771749289079,9.10209262,84.897,84.854,4.80513956]
[1771749289280,9.10373585,84.896,84.854,4.80513956]
[1771749289480,2.48767875,84.9,84.854,4.80513956]
[1771749289781,9.10373734,84.899,84.854,4.80513956]
[1771749289980,9.10373734,84.898,84.854,4.80513956]
[1771749290281,9.10373734,84.897,84.854,4.80513956]
[1771749290480,9.10373734,84.896,84.854,4.80513956]
[1771749290778,9.10373734,84.895,84.854,4.80513956]
[1771749290980,2.48767875,84.9,84.854,4.80513956]
[1771749291183,9.10568689,84.899,84.854,4.80513956]
[1771749291381,9.10568689,84.898,84.854,4.80513956]
[1771749291575,9.10568689,84.897,84.854,4.80513956]
[1771749291778,14.51180788,84.922,84.87,3.96295595]
[1771749291975,2.48767875,84.92,84.871,3.96295595]
[1771749292175,2.48767875,84.91,84.871,3.96295595]
[1771749292779,2.48767875,84.91,84.874,3.96295595]
[1771749294884,3.68519951,84.919,84.874,3.96295595]
[1771749300184,3.68519951,84.919,84.875,10.6069]
[1771749300384,2.48767875,84.93,84.876,3.96295595]
[1771749300585,2.48767875,84.93,84.881,3.96295595]
[1771749301281,6.17287826,84.93,84.881,3.96295595]
[1771749301488,3.68519951,84.929,84.881,3.96295595]
[1771749301687,3.68519951,84.929,84.883,3.96295595]
[1771749305087,2.48767875,84.92,84.883,3.96295595]
[1771749307690,3.68519951,84.929,84.883,3.96295595]
[1771749308685,3.68519951,84.929,84.89,3.71322357]
[1771749313293,2.48767875,84.92,84.841,3.96739838]
[1771749313498,342.7816,84.987,84.861,3.96739838]
[1771749313499,3.99459872,84.909,84.861,3.96739838]
[1771749314698,3.99459872,84.909,84.87,3.96739838]
[1771749315800,3.99459872,84.909,84.872,3.96739838]
[1771749332305,3.99459872,84.909,84.875,3.96739838]
[1771749334312,3.99459872,84.919,84.88,3.96739838]
[1771749335507,3.99459872,84.919,84.881,3.96739838]
[1771749335707,3.99459872,84.919,84.882,3.96739838]
[1771749338504,3.99459872,84.919,84.885,3.6534406]
[1771749339513,3.71770002,84.929,84.885,3.6534406]
[1771749351520,3.71770002,84.938,84.903,3.6534406]
[1771749351719,21.44184036,84.958,84.903,3.6534406]
[1771749351720,3.71770002,84.958,84.903,3.6534406]
[1771749352124,2.48627899,84.96,84.911,3.6534406]
[1771749352324,3.71770002,84.959,84.911,3.6534406]
[1771749352822,3.71770002,84.959,84.916,3.6534406]
[1771749354225,3.71770002,84.949,84.916,3.6534406]
[1771749373530,14.45826933,84.997,84.916,3.6534406]
[1771749373531,3.92352679,84.959,84.92,2.48627899]
[1771749373733,3.92352679,84.959,84.921,3.89772133]
[1771749373934,3.92352679,84.972,84.921,3.89772133]
[1771749374638,3.92352679,84.972,84.931,3.89772133]
[1771749375933,0.07423797,84.96,84.932,3.89772133]
[1771749376433,0.07423797,84.96,84.933,10.5997]
[1771749376627,0.07423797,84.96,84.934,3.89772133]
[1771749377731,0.07423797,84.96,84.935,10.5994]
[1771749377936,3.92352679,84.972,84.936,3.89772133]
[1771749378837,3.92352679,84.972,84.938,3.89772133]
[1771749380035,3.92352679,84.972,84.93,2.48214277]
[1771749380036,3.92352679,84.989,84.941,3.89772133]
[1771749381235,3.92352679,84.989,84.947,3.89772133]
[1771749382535,3.92352679,84.989,84.96,0.07455834]
[1771749400060,3.92352679,84.989,84.96,3.95749718]
[1771749406773,2.45598889,84.989,84.96,3.95749718]
[1771749413780,2.45598889,84.989,84.963,10.5959]
[1771749416679,2.45598889,84.989,84.963,14.47883884]
[1771749420784,2.45598889,84.989,84.963,3.88293884]
[1771749421781,3.60996593,84.979,84.96,0.07455834]
[1771749421981,3.60996593,84.979,84.938,311.00777366]
[1771749421982,3.60996593,84.979,84.938,314.8907125]
[1771749422179,3.60996593,84.979,84.939,3.88293884]
[1771749422683,3.60996593,84.979,84.944,3.88293884]
[1771749427593,3.60996593,84.989,84.944,3.88293884]
[1771749431492,3.91453977,85.0,84.951,3.81296539]
[1771749432691,3.91453977,85.0,84.95,2.48214277]
[1771749432692,3.91453977,85.0,84.953,3.81296539]
[1771749432894,0.07470493,84.984,84.953,3.81296539]
[1771749433395,0.07470493,84.984,84.958,3.89339579]
[1771749446612,3.91204975,85.009,84.965,3.89339579]
[1771749446806,9.25399881,85.008,84.965,3.89339579]
[1771749447110,3.91204975,85.006,84.965,3.89339579]
[1771749448406,3.91204975,85.006,84.977,0.07470122]
[1771749451010,9.2529006,85.005,84.977,0.07470122]
[1771749451210,3.91204975,85.003,84.977,0.07470122]
[1771749451414,9.25705061,85.002,84.977,0.07470122]
[1771749451710,2.48099043,85.0,84.977,0.07470122]
[1771749451911,3.91204975,84.999,84.977,0.07470122]
[1771749476423,9.23142876,84.998,84.977,0.07470122]
[1771749476627,9.23142876,84.997,84.977,0.07470122]
[1771749476824,3.91204975,84.999,84.977,0.07470122]
[1771749477127,9.23142977,84.998,84.977,0.07470122]
[1771749477322,9.23142977,84.997,84.977,0.07470122]
[1771749477522,3.91204975,84.999,84.977,0.07470122]
[1771749477721,9.23147159,84.998,84.977,0.07470122]
[1771749477923,9.23147159,84.997,84.977,0.07470122]
[1771749478130,3.91204975,84.999,84.977,0.07470122]
[1771749478330,9.2314736,84.998,84.977,0.07470122]
[1771749478531,9.2314736,84.997,84.977,0.07470122]
[1771749478734,3.91204975,84.999,84.977,0.07470122]
[1771749478931,9.23251718,84.998,84.977,0.07470122]
[1771749479233,1.718e-05,84.997,84.977,0.07470122]
[1771749479533,3.87293079,85.008,84.977,0.07470122]
[1771749484138,3.87293079,84.989,84.949,10.5976]
[1771749484334,3.87293079,84.989,84.95,3.6518587]
[1771749485239,3.87293079,84.989,84.954,3.6518587]
[1771749485744,2.48099043,85.0,84.96,3.6518587]
[1771749485945,3.87293079,85.009,84.96,3.6518587]
[1771749486847,3.87293079,85.009,84.962,3.6518587]
[1771749491050,3.69581547,85.007,84.962,3.6518587]
[1771749491247,3.69581547,85.005,84.962,3.6518587]
[1771749491447,3.69581547,85.003,84.962,3.6518587]
[1771749491648,3.69581547,85.001,84.962,3.6518587]
[1771749491847,3.69581547,84.999,84.962,3.6518587]
[1771749492045,9.19836458,84.998,84.962,3.6518587]
[1771749492243,9.19836458,84.997,84.962,3.6518587]
[1771749492443,9.19836458,84.996,84.962,3.6518587]
[1771749492647,3.69581547,84.999,84.962,3.6518587]
[1771749492951,3.69581547,84.999,84.95,2.48099043]
[1771749492952,9.1982913,84.998,84.964,3.98736458]
[1771749493150,9.1982913,84.997,84.964,3.98736458]
[1771749493450,9.1982913,84.996,84.964,3.98736458]
[1771749493651,3.69581547,84.999,84.964,3.98736458]
[1771749493952,9.19822474,84.998,84.964,3.98736458]
[1771749494150,9.19822474,84.997,84.964,3.98736458]
[1771749494351,9.19822474,84.996,84.964,3.98736458]
[1771749494652,3.69581547,84.999,84.964,3.98736458]
[1771749494853,9.19816567,84.998,84.964,3.98736458]
[1771749495045,9.19816567,84.997,84.964,3.98736458]
[1771749495246,9.19816567,84.996,84.964,3.98736458]
[1771749495445,3.69581547,84.999,84.964,3.98736458]
[1771749495653,9.19812278,84.998,84.964,3.98736458]
[1771749495852,9.19812278,84.997,84.964,3.98736458]
[1771749496045,3.69581547,84.999,84.964,3.98736458]
[1771749496046,9.19812278,84.996,84.964,3.98736458]
[1771749496245,3.69581547,84.999,84.964,3.98736458]
[1771749496446,9.18833374,84.998,84.964,3.98736458]
[1771749496648,9.18833374,84.997,84.964,3.98736458]
[1771749496842,9.18833374,84.996,84.964,3.98736458]
[1771749497048,3.69581547,84.999,84.964,3.98736458]
[1771749497252,9.18833374,84.998,84.964,3.98736458]
[1771749497547,9.18833374,84.997,84.964,3.98736458]
[1771749497751,9.18833374,84.996,84.964,3.98736458]
[1771749497950,3.69581547,84.999,84.964,3.98736458]
[1771749498147,9.18829384,84.998,84.965,14.58306458]
[1771749498349,9.18829384,84.997,84.966,3.98736458]
[1771749498551,9.18829384,84.996,84.966,3.98736458]
[1771749498753,3.69581547,84.999,84.966,3.98736458]
[1771749499052,9.18826016,84.998,84.966,3.98736458]
[1771749499251,9.18826016,84.997,84.966,3.98736458]
[1771749499445,3.69581547,84.999,84.966,3.98736458]
[1771749499647,9.18823798,84.998,84.966,3.98736458]
[1771749499853,9.18823798,84.997,84.966,3.98736458]
[1771749500056,3.69581547,84.999,84.966,3.98736458]
[1771749500251,9.18823995,84.998,84.966,3.98736458]
[1771749500551,9.18823995,84.997,84.966,3.98736458]
[1771749500745,3.69581547,84.999,84.966,3.98736458]
[1771749500946,9.18821489,84.998,84.966,3.98736458]
[1771749501146,9.18821489,84.997,84.966,3.98736458]
[1771749501353,3.69581547,84.999,84.966,3.98736458]
[1771749501556,9.18819917,84.998,84.966,3.98736458]
[1771749501755,9.18819917,84.997,84.966,3.98736458]
[1771749501955,3.69581547,84.999,84.966,3.98736458]
[1771749502158,9.18819917,84.998,84.966,3.98736458]
[1771749502354,9.18819917,84.997,84.966,3.98736458]
[1771749502555,3.69581547,84.999,84.966,3.98736458]
[1771749502756,9.18818694,84.998,84.966,3.98736458]
[1771749502955,9.18818694,84.997,84.966,3.98736458]
[1771749503152,3.69581547,84.999,84.966,3.98736458]
[1771749503357,3.99073341,84.997,84.966,3.98736458]
[1771749507255,9.18815895,84.996,84.966,3.98736458]
[1771749507459,3.99073341,84.997,84.966,3.98736458]
[1771749509661,9.18820243,84.996,84.966,3.98736458]
[1771749509857,3.99073341,84.997,84.966,3.98736458]
[1771749510366,0.07416741,84.99,84.966,3.98736458]
[1771749526079,244.68707971,85.019,84.974,3.69207365]
[1771749526080,3.77527628,85.007,84.974,3.69207365]
[1771749526376,9.20411724,85.006,84.974,3.69207365]
[1771749526577,9.20411724,85.005,84.974,3.69207365]
[1771749526777,9.20411724,85.004,84.974,3.69207365]
[1771749526978,9.20411724,85.003,84.974,3.69207365]
[1771749527179,3.77527628,85.007,84.974,3.69207365]
[1771749527180,9.20411724,85.002,84.974,3.69207365]
[1771749527378,3.77527628,85.007,84.974,3.69207365]
[1771749527581,3.90298945,85.005,84.974,3.69207365]
[1771749527779,3.90298945,85.003,84.975,10.5944]
[1771749527980,9.20325347,85.002,84.975,10.5944]
[1771749528180,3.90298945,85.003,84.975,10.5944]
[1771749528379,9.20260141,85.002,84.975,10.5944]
[1771749528681,3.90298945,85.003,84.975,10.5944]
[1771749528882,9.20260141,85.002,84.975,10.5944]
[1771749529072,3.90298945,85.003,84.975,10.5944]
[1771749529274,9.20220074,85.002,84.975,10.5944]
[1771749529474,3.90298945,85.003,84.975,10.5944]
[1771749529674,9.20220074,85.002,84.975,10.5944]
[1771749529878,3.90298945,85.003,84.975,10.5944]
[1771749530082,9.2020311,85.002,84.975,10.5944]
[1771749530278,3.90298945,85.003,84.975,10.5944]
[1771749530478,9.20166851,85.002,84.975,10.5944]
[1771749530679,3.90298945,85.003,84.975,10.5944]
[1771749530878,9.20166477,85.002,84.975,10.5944]
[1771749531074,3.90298945,85.003,84.975,10.5944]
[1771749540391,3.90298945,85.003,84.975,14.52637055]
[1771749540587,3.90298945,85.003,84.977,10.5942]
[1771749540986,2.48084434,85.01,84.977,14.52617055]
[1771749541188,9.19219914,85.009,84.977,14.52617055]
[1771749541389,2.48084434,85.01,84.977,14.52617055]
[1771749541591,9.19212746,85.009,84.977,14.52617055]
[1771749541890,6.38383379,85.01,84.977,14.52617055]
[1771749542090,9.19212746,85.009,84.977,14.52617055]
[1771749542290,6.38383379,85.01,84.977,14.52617055]
[1771749542491,9.19168925,85.009,84.977,14.52617055]
[1771749542690,6.38383379,85.01,84.977,14.52617055]
[1771749542892,9.19169715,85.009,84.977,14.52617055]
[1771749543092,6.38383379,85.01,84.977,14.52617055]
[1771749543592,6.38383379,85.01,84.978,3.93197055]
[1771749544493,6.38383379,85.01,84.983,10.5934]
[1771749544692,6.38383379,85.01,84.978,3.93197055]
[1771749545690,3.90298945,85.01,84.978,3.93197055]